bitfinex/quotes_ETHUSD_20241130
["timestamp","ask_amount","ask_price","bid_price","bid_amount"]
[1732956061379,2.05657269,3697.2,3696.7,2.70511]
[1732956061620,2.7045,3697.6,3696.3,2.70538]
[1732956061621,2.05657269,3696.8,3696.3,2.70538]
[1732956061919,0.25192639,3696.7,3696.4,2.70527]
[1732956062100,2.05657269,3696.8,3696.3,2.70538]
[1732956062101,0.25192639,3696.6,3696.5,2.70525]
[1732956062304,8.98,3697.0,3696.9,2.70496]
[1732956062486,9.23190289,3697.0,3696.9,2.70496]
[1732956063191,8.98,3697.0,3696.9,3.25496]
[1732956063375,9.23196395,3697.0,3696.9,3.25496]
[1732956063578,9.23197032,3697.0,3696.8,0.55]
[1732956063778,8.98,3697.0,3696.8,0.55]
[1732956064001,8.98,3697.0,3696.9,2.70496]
[1732956064318,9.23207105,3697.0,3696.9,3.25496]
[1732956064625,8.98,3697.0,3696.9,3.25496]
[1732956064788,10.50048988,3697.0,3696.8,0.55]
[1732956064991,10.50048988,3697.0,3696.7,0.55]
[1732956064992,0.25210261,3696.9,3696.7,0.55]
[1732956065290,10.24838727,3697.0,3696.7,0.55]
[1732956065490,1.53640562,3696.9,3696.7,0.55]
[1732956065790,2.05657269,3696.8,3696.5,3.25525]
[1732956066423,2.05657269,3696.8,3696.2,2.70547]
[1732956066424,1.68111455,3696.7,3696.1,0.55]
[1732956066718,1.68111455,3696.7,3696.4,2.70528]
[1732956066915,0.75426426,3696.6,3696.5,0.55]
[1732956067121,0.75426426,3696.6,3696.3,0.55]
[1732956067329,0.25206589,3696.5,3696.3,0.55]
[1732956067823,0.50219837,3696.6,3696.3,0.55]
[1732956068023,2.05657269,3696.4,3696.3,0.55]
[1732956068176,2.30853755,3696.4,3696.1,0.55]
[1732956068384,2.05657269,3696.4,3696.1,0.55]
[1732956068579,2.05657269,3696.4,3696.0,2.70562]
[1732956068813,2.05657269,3696.4,3696.3,2.7054]
[1732956069012,8.98,3696.8,3696.6,2.70518]
[1732956069238,8.98,3696.8,3696.7,2.70511]
[1732956069592,8.98,3696.8,3696.7,2.73798134]
[1732956069997,3.66947269,3697.0,3696.8,2.70503]
[1732956070186,3.66947269,3697.0,3696.7,0.03287134]
[1732956070384,1.6129,3697.3,3696.8,0.03286101]
[1732956070732,2.73279444,3697.3,3697.2,2.70474]
[1732956070882,2.73279444,3697.3,3696.6,2.70513]
[1732956070883,11.03657269,3698.0,3697.7,2.70438]
[1732956071086,0.25199475,3697.9,3697.2,0.03276558]
[1732956071309,0.25199475,3697.8,3697.5,2.70447]
[1732956071508,0.25199475,3697.7,3697.6,2.70444]
[1732956071709,0.25199475,3697.7,3697.6,2.7370597]
[1732956073127,0.2519927,3697.7,3697.6,2.7370597]
[1732956074089,2.60984249,3698.0,3697.8,2.7043]
[1732956074320,0.25197622,3697.9,3697.6,2.7370697]
[1732956074530,0.25197622,3697.8,3696.9,0.5823]
[1732956074735,3.97043557,3698.0,3697.5,2.70448]
[1732956074949,0.25197457,3697.9,3697.1,2.70482]
[1732956075090,2.05657269,3697.7,3697.2,0.55]
[1732956075291,0.03380463,3697.6,3696.9,0.5823]
[1732956075490,2.05657269,3697.7,3697.6,2.70445]
[1732956076244,2.05657269,3697.7,3697.4,2.70456]
[1732956076404,0.2090379,3697.6,3697.4,2.70456]
[1732956078042,0.25190217,3697.5,3697.4,2.70456]
[1732956078271,1.6124,3697.5,3697.2,2.70468]
[1732956078552,1.6124,3697.5,3697.0,2.70488]
[1732956078553,2.05657269,3697.3,3697.0,2.70488]
[1732956078714,0.25189723,3697.2,3697.0,2.70488]
[1732956078917,2.05657269,3697.3,3697.0,2.70488]
[1732956079165,0.25188312,3697.2,3697.0,2.70488]
[1732956079332,2.05657269,3697.3,3697.0,2.70488]
[1732956079660,0.25187946,3697.2,3697.0,2.70488]
[1732956079867,2.48806825,3697.3,3697.0,2.70488]
[1732956080025,0.25187241,3697.2,3697.0,2.70488]
[1732956080228,2.52187865,3697.3,3696.9,0.55]
[1732956080558,2.52187865,3697.3,3697.0,2.70489]
[1732956080559,0.25186202,3697.2,3697.0,2.70489]
[1732956080715,0.25186202,3697.2,3696.7,3.2551]
[1732956080716,0.47892763,3697.2,3696.8,2.70502]
[1732956080922,2.05657269,3696.9,3696.8,2.70502]
[1732956081460,2.05657269,3696.9,3696.7,2.70509]
[1732956081757,2.05657269,3696.9,3696.5,2.70521]
[1732956081959,1.89799998,3696.8,3696.3,2.70539]
[1732956082158,2.05657269,3696.5,3696.1,2.70554]
[1732956082473,2.05657269,3696.5,3696.4,2.70533]
[1732956083532,2.30828452,3696.9,3696.4,3.25533]
[1732956083720,0.25171183,3696.8,3696.6,2.70513]
[1732956083921,0.25171183,3696.7,3696.4,2.70532]
[1732956084134,2.05657269,3696.5,3696.4,2.70532]
[1732956085055,2.05657269,3696.5,3696.4,3.25532]
[1732956085545,2.05657269,3696.5,3696.4,3.28490187]
[1732956086575,2.05657269,3696.5,3696.4,2.73490187]
[1732956088677,2.05657269,3696.5,3696.4,3.28490187]
[1732956088904,2.05657269,3696.5,3696.4,2.73490187]
[1732956090166,11.03657269,3696.9,3696.8,2.70504]
[1732956090366,11.28837965,3696.9,3696.8,3.25504]
[1732956090668,8.98,3696.9,3696.8,3.28361604]
[1732956090983,2.05657269,3697.3,3696.9,0.55]
[1732956091197,2.05657269,3697.3,3697.2,3.25474]
[1732956091408,2.30843521,3697.3,3697.2,3.25474]
[1732956091568,2.30843521,3697.3,3697.2,3.28322063]
[1732956093112,2.05657269,3697.3,3697.2,3.28322063]
[1732956093297,2.30832836,3697.3,3697.2,3.28322063]
[1732956093603,0.61182818,3697.6,3697.5,2.70453]
[1732956093819,0.25171992,3697.6,3697.5,3.25453]
[1732956093970,0.25171992,3697.6,3697.5,3.28291294]
[1732956094171,2.05657269,3697.7,3697.6,3.25445]
[1732956094372,2.30830146,3697.7,3697.6,3.25445]
[1732956094612,2.05657269,3697.7,3697.6,3.28280099]
[1732956095789,2.05657269,3698.1,3697.8,0.55]
[1732956095992,3.31628996,3698.1,3698.0,3.25416]
[1732956096181,3.56795363,3698.1,3698.0,3.25416]
[1732956096511,3.56795363,3698.1,3698.0,3.28038094]
[1732956096914,4.29782956,3698.1,3697.8,2.70425]
[1732956097211,4.29782956,3698.1,3697.4,2.70454]
[1732956097212,2.58247376,3698.0,3697.4,2.70454]
[1732956097392,2.05657269,3697.7,3697.4,2.70454]
[1732956097570,0.65430683,3697.6,3697.4,2.70454]
[1732956097776,0.25166367,3697.5,3697.4,2.70454]
[1732956098768,0.25166367,3697.5,3697.4,3.25454]
[1732956099067,0.48248731,3697.5,3697.4,3.25454]
[1732956100523,0.88524226,3697.5,3697.4,3.25454]
[1732956100719,0.88522971,3697.5,3697.4,0.55]
[1732956101120,1.5606,3697.4,3697.3,0.55]
[1732956101337,1.81226367,3697.4,3697.3,3.25467]
[1732956101519,3.12022967,3697.4,3697.3,0.55]
[1732956101733,3.52300849,3697.4,3697.3,0.55]
[1732956102246,3.89057542,3697.4,3697.3,0.55]
[1732956102408,8.98,3697.3,3697.1,0.55]
[1732956102605,8.98,3697.1,3697.0,2.70488]
[1732956102835,11.49726498,3697.1,3697.0,2.70488]
[1732956103757,13.05786498,3697.1,3696.9,2.70491]
[1732956103940,12.40342104,3697.1,3697.0,3.25489]
[1732956104126,13.05784874,3697.1,3696.0,0.5823]
[1732956104312,1.5606,3696.2,3696.1,2.7055]
[1732956104511,1.59441904,3696.2,3696.1,2.73018625]
[1732956104814,1.81232544,3696.2,3696.1,2.73018625]
[1732956105351,2.27611171,3696.2,3696.1,2.73018625]
[1732956105649,2.27605522,3696.2,3696.1,2.73018625]
[1732956105947,2.27604757,3696.2,3696.1,2.73018625]
[1732956106165,2.67870157,3696.2,3696.1,0.02468625]
[1732956106452,2.27604757,3696.2,3696.1,0.02468625]
[1732956107551,11.25604757,3696.2,3696.1,0.02468625]
[1732956107792,11.65863453,3696.2,3696.1,0.02468625]
[1732956108284,12.57148502,3696.2,3696.1,0.02468625]
[1732956108492,12.57148502,3696.2,3695.6,2.70586]
[1732956108798,1.02012242,3696.1,3695.7,2.70581]
[1732956108973,9.63390964,3696.0,3695.7,2.73086752]
[1732956109175,0.65390964,3695.9,3695.7,2.73086752]
[1732956109372,9.34621278,3696.0,3695.8,2.70577]
[1732956109574,0.25141713,3695.9,3695.8,2.70577]
[1732956110082,0.25141713,3695.9,3695.8,2.6963226]
[1732956110286,0.25141713,3695.9,3695.8,2.4778226]
[1732956110492,2.30798982,3695.9,3695.8,2.4778226]
[1732956110779,8.98,3696.0,3695.8,2.45277]
[1732956110987,8.98,3696.0,3695.9,2.7057]
[1732956111181,8.98,3696.0,3695.9,2.73075128]
[1732956112159,11.03657269,3696.3,3696.2,2.70548]
[1732956112357,11.2878679,3696.3,3696.2,2.70548]
[1732956112560,11.2878679,3696.3,3696.2,2.73045878]
[1732956113502,8.98,3696.3,3696.2,3.86275878]
[1732956114774,2.05657269,3696.7,3696.6,2.70518]
[1732956115157,2.05657269,3696.7,3696.6,2.7302707]
[1732956116997,12.69717269,3696.7,3695.2,0.5823]
[1732956117201,12.69717269,3696.7,3694.9,0.5823]
[1732956117202,3.71717269,3695.6,3694.9,0.5823]
[1732956117388,0.03382528,3695.5,3695.4,2.70605]
[1732956117581,0.42380667,3695.5,3695.4,2.70605]
[1732956117914,10.48677814,3695.5,3695.3,2.70612]
[1732956118691,0.94707267,3695.1,3695.0,6.22907727]
[1732956119109,0.69599189,3695.1,3695.0,6.22907727]
[1732956120312,0.38998139,3695.1,3695.0,6.22907727]
[1732956120636,10.06297,3695.5,3695.0,6.77907727]
[1732956120784,10.06297,3695.5,3695.4,2.70606]
[1732956121189,10.59205505,3695.5,3695.4,2.70606]
[1732956121636,10.06297,3695.5,3695.4,3.28836]
[1732956122621,2.05657269,3696.0,3695.9,2.7057]
[1732956123810,3.13928969,3696.0,3695.9,2.7057]
[1732956124411,3.13928969,3696.0,3695.9,3.2557]
[1732956127139,1.082717,3696.0,3695.9,3.2557]
[1732956128455,2.05657269,3696.2,3695.9,3.2557]
[1732956128777,2.05657269,3696.2,3696.1,3.25555]
[1732956129067,2.41888169,3696.2,3696.1,3.25555]
[1732956129226,3.06026189,3696.2,3696.1,3.25555]
[1732956129426,5.34703227,3696.2,3696.1,3.25555]
[1732956129664,3.06032908,3696.2,3696.1,3.25555]
[1732956130029,3.06033333,3696.2,3696.1,3.25555]
[1732956133456,2.69802433,3696.2,3696.1,3.25555]
[1732956133841,2.69824999,3696.2,3696.1,3.25555]
[1732956134043,2.44655408,3696.2,3696.1,3.25555]
[1732956134554,2.69826322,3696.2,3696.1,3.25555]
[1732956136042,2.44655408,3696.2,3696.1,3.25555]
[1732956136243,2.69824799,3696.2,3696.1,3.25555]
[1732956137796,0.38998139,3696.2,3696.1,3.25555]
[1732956138572,0.362309,3696.4,3696.2,0.55]
[1732956138749,0.362309,3696.4,3696.0,0.5823]
[1732956138750,2.44655408,3696.6,3696.4,0.55]
[1732956138944,3.63167217,3696.6,3696.5,3.25526]
[1732956139155,12.82297714,3696.6,3696.5,2.86527861]
[1732956139363,13.22566897,3696.6,3696.5,2.86527861]
[1732956140370,13.58315191,3696.6,3696.5,2.86527861]
[1732956140772,15.22475191,3696.6,3696.1,2.70554]
[1732956140975,2.05657269,3696.2,3695.9,2.70564]
[1732956141287,0.2516878,3696.1,3695.9,2.70564]
[1732956141591,0.2516878,3696.0,3695.9,2.46474]
[1732956141899,0.2516878,3696.0,3695.9,2.40454]
[1732956142647,2.41405563,3696.2,3695.9,2.40454]
[1732956142988,1.13940556,3696.1,3695.9,2.40454]
[1732956143196,1.13940556,3696.1,3696.0,2.70562]
[1732956143495,2.05657269,3696.2,3696.1,3.25555]
[1732956143991,2.05657269,3696.2,3696.0,2.70562]
[1732956144192,2.05657269,3696.2,3695.4,0.55]
[1732956144495,2.05657269,3696.2,3695.9,2.70565]
[1732956144793,3.31782676,3696.2,3695.9,2.70565]
[1732956145085,3.31782676,3696.2,3696.0,2.70559]
[1732956145289,0.65471034,3696.1,3696.0,2.70559]
[1732956145502,0.65480332,3696.1,3696.0,2.70559]
[1732956146062,0.65475426,3696.1,3695.9,2.70565]
[1732956146262,0.25184743,3696.0,3695.9,3.25565]
[1732956146476,0.25184743,3696.0,3695.9,2.70565]
[1732956147269,0.25184743,3696.0,3695.9,3.25565]
[1732956147458,0.53492784,3696.7,3696.0,3.25557]
[1732956147656,0.53492784,3696.7,3696.6,2.70518]
[1732956147881,0.78684319,3696.7,3696.6,3.25518]
[1732956148521,0.25191535,3696.7,3696.6,3.25518]
[1732956149069,0.65519135,3696.7,3696.6,3.25518]
[1732956149272,0.25191535,3696.7,3696.6,3.25518]
[1732956149510,0.65514937,3696.7,3696.6,3.25518]
[1732956150315,0.25191535,3696.7,3696.6,3.25518]
[1732956150785,0.25191535,3696.7,3696.6,2.70518]
[1732956150786,2.30848804,3696.7,3696.6,2.70518]
[1732956150985,2.57968508,3696.7,3696.4,2.70526]
[1732956151277,2.24017413,3696.6,3696.4,2.70526]
[1732956151472,2.24017413,3696.6,3695.5,0.5823]
[1732956151473,9.23191535,3696.5,3695.5,0.5823]
[1732956151673,2.05657269,3696.3,3695.9,2.70563]
[1732956151888,0.25191535,3696.2,3695.9,2.70563]
[1732956152086,0.25191535,3696.1,3695.9,2.70563]
[1732956152314,0.25191535,3696.0,3695.9,2.70563]
[1732956152523,0.65546758,3696.0,3695.9,2.70563]
[1732956154175,0.25191535,3696.0,3695.9,2.70563]
[1732956154402,0.65542364,3696.0,3695.9,2.70563]
[1732956154601,0.25191535,3696.0,3695.9,2.70563]
[1732956154776,0.65542018,3696.0,3695.9,2.70563]
[1732956154976,0.25191535,3696.0,3695.9,2.70563]
[1732956155417,0.65542646,3696.0,3695.9,2.70563]
[1732956155725,0.65542732,3696.0,3695.9,2.70563]
[1732956155923,0.40351197,3696.0,3695.9,2.70563]
[1732956156222,0.65571594,3696.0,3695.9,3.25563]
[1732956156515,0.32899155,3696.2,3696.0,0.55]
[1732956156725,0.94299761,3696.1,3696.0,0.55]
[1732956156931,0.94299761,3696.1,3695.8,3.25573]
[1732956157094,0.25219487,3696.0,3695.9,3.2557]
[1732956159500,0.5507925,3696.2,3695.9,3.2557]
[1732956159816,0.5507925,3696.2,3696.1,3.25555]
[1732956160023,0.80300723,3696.2,3696.1,3.25555]
[1732956160191,0.80300723,3696.2,3696.1,3.83785]
[1732956160399,1.87379222,3696.2,3696.1,3.25555]
[1732956160830,2.27733025,3696.2,3696.1,3.25555]
[1732956161729,2.63481319,3696.2,3696.0,0.55]
[1732956161894,9.23221473,3696.1,3696.0,0.55]
[1732956162235,11.1215965,3696.1,3696.0,0.55]
[1732956162833,11.1215965,3696.1,3695.2,2.70614]
[1732956162834,8.98,3696.0,3695.5,2.70594]
[1732956163037,3.64737269,3695.8,3695.5,2.70594]
[1732956163222,0.25221473,3695.7,3695.5,2.70594]
[1732956163427,0.25221473,3695.6,3695.5,2.70594]
[1732956163796,0.25221473,3695.6,3694.9,2.70636]
[1732956163797,8.98,3695.5,3694.9,2.70636]
[1732956163999,0.64555585,3695.6,3695.0,6.22903727]
[1732956164000,8.98,3695.3,3695.0,6.22903727]
[1732956164226,0.25221473,3695.2,3695.0,6.22903727]
[1732956164441,8.98,3695.2,3695.0,3.52272727]
[1732956164666,8.98,3695.2,3695.1,2.70628]
[1732956164835,9.23203017,3695.2,3695.0,3.52272727]
[1732956165039,0.25203017,3695.1,3695.0,3.52272727]
[1732956165244,8.98,3695.2,3695.1,0.55]
[1732956165534,9.23194949,3695.2,3695.1,3.25628]
[1732956166733,9.23189411,3695.2,3695.1,3.25628]
[1732956166968,10.85729411,3695.2,3695.1,0.55]
[1732956167627,12.14868079,3695.2,3695.1,0.55]
[1732956168765,10.52328079,3695.2,3695.1,3.25628]
[1732956168931,9.23189411,3695.2,3695.1,3.25628]
[1732956169730,8.98,3695.2,3695.1,3.25628]
[1732956171640,2.05657269,3695.8,3695.7,3.25584]
[1732956171846,2.3083721,3695.8,3695.7,3.25584]
[1732956172169,0.25179941,3695.8,3695.7,3.83814]
[1732956172356,2.05657269,3696.2,3696.0,0.55]
[1732956172553,3.39520735,3696.2,3696.1,3.25555]
[1732956172755,3.64700869,3696.2,3696.1,2.89806706]
[1732956172977,4.04987142,3696.2,3696.0,2.70562]
[1732956173186,0.25180134,3696.1,3695.8,0.55]
[1732956173481,3.68908095,3696.2,3694.3,0.2706]
[1732956173482,1.6541,3695.7,3694.3,0.2706]
[1732956173632,1.31521134,3695.6,3694.7,0.5823]
[1732956173832,0.25178868,3695.5,3694.7,0.5823]
[1732956174076,1.06341,3695.6,3695.3,2.70614]
[1732956174239,1.06341,3695.6,3695.5,2.70599]
[1732956174438,1.31519248,3695.6,3695.3,2.70614]
[1732956174754,0.25178248,3695.5,3695.4,3.25605]
[1732956175172,0.25178248,3695.5,3695.4,3.24125]
[1732956175467,0.25178248,3695.5,3695.4,3.22625]
[1732956175670,3.71067269,3695.7,3695.6,2.70592]
[1732956175878,3.96246068,3695.7,3695.6,3.25592]
[1732956176276,3.96246068,3695.7,3695.6,3.24112]
[1732956177659,4.29015338,3695.7,3695.6,3.24112]
[1732956178181,13.27015338,3695.7,3695.6,3.24112]
[1732956181075,11.28847336,3695.7,3695.6,3.24112]
[1732956182944,11.69160699,3695.7,3695.6,3.24112]
[1732956183066,12.68072304,3695.7,3695.6,3.24112]
[1732956183680,12.27759851,3695.7,3695.6,3.20172]
[1732956183886,0.25197313,3695.7,3695.6,3.78402]
[1732956184089,0.40316213,3696.1,3696.0,2.70562]
[1732956184289,2.58652641,3696.6,3696.2,3.25548]
[1732956184607,0.85764642,3696.6,3696.5,0.55]
[1732956184760,3.31737638,3696.6,3696.5,0.55]
[1732956184956,3.31737638,3696.6,3696.5,3.25526]
[1732956185460,2.91421911,3696.6,3696.5,3.25526]
[1732956185681,2.58652641,3696.6,3696.5,3.25526]
[1732956189494,4.51378462,3696.6,3695.7,0.5823]
[1732956189655,2.05657269,3696.2,3696.1,2.70554]
[1732956189860,11.03657269,3696.2,3695.4,0.5823]
[1732956190055,11.03657269,3696.2,3696.1,2.70555]
[1732956190295,12.17204419,3696.2,3696.1,2.70555]
[1732956190559,11.03657269,3696.2,3696.1,2.70555]
[1732956191061,8.98,3696.2,3696.1,2.90945]
[1732956191551,8.98,3696.2,3696.1,2.88475]
[1732956193261,2.58652641,3696.6,3696.5,2.70526]
[1732956193406,2.58652641,3696.6,3696.5,3.25526]
[1732956193746,2.58652641,3696.6,3696.5,3.12196]
[1732956194043,2.58652641,3696.6,3696.5,3.07666]
[1732956194466,2.58652641,3696.6,3696.5,3.01176]
[1732956194815,3.93252328,3696.6,3696.5,3.01176]
[1732956195017,3.93252328,3696.6,3696.5,0.55]
[1732956195248,1.5387,3696.5,3695.5,2.70599]
[1732956195487,2.05657269,3696.2,3696.1,2.7055]
[1732956196518,2.05657269,3696.2,3696.1,3.2555]
[1732956197330,2.05657269,3696.2,3696.1,3.189]
[1732956197647,2.05657269,3696.2,3696.1,2.9835]
[1732956199422,2.05657269,3696.2,3696.1,0.55]
[1732956199640,2.30841861,3696.2,3696.0,3.25562]
[1732956199849,2.05657269,3696.2,3696.1,3.25555]
[1732956200031,2.59048833,3696.2,3696.1,3.25555]
[1732956200355,2.5905164,3696.2,3696.1,3.25555]
[1732956201031,2.30840989,3696.2,3696.1,3.25555]
[1732956202270,0.2518372,3696.2,3696.1,3.25555]
[1732956202476,0.3276927,3696.5,3696.4,3.25533]
[1732956202675,0.57955513,3696.5,3696.4,3.25533]
[1732956202987,0.57955513,3696.5,3696.4,0.55]
[1732956203145,2.29798985,3696.5,3696.2,0.55]
[1732956203491,0.89769746,3696.4,3696.3,0.55]
[1732956203865,0.89769746,3696.4,3696.3,3.2554]
[1732956204363,0.64583503,3696.4,3696.3,3.1895]
[1732956204556,0.89774046,3696.4,3696.3,3.1176]
[1732956205349,0.57959813,3696.4,3696.3,3.1176]
[1732956206361,0.57959813,3696.4,3696.3,3.1013]
[1732956206574,1.97455189,3696.4,3696.3,0.4935]
[1732956207284,1.97455189,3696.4,3696.3,3.1723]
[1732956208689,2.29269422,3696.4,3696.3,3.1723]
[1732956209305,2.04078879,3696.4,3696.3,3.1723]
[1732956209465,0.64583503,3696.4,3696.3,3.1723]
[1732956209672,0.25216303,3696.4,3696.3,3.1723]
[1732956209897,0.65562989,3696.4,3696.3,3.1723]
[1732956210212,0.25216303,3696.4,3696.3,3.1723]
[1732956210415,0.65566368,3696.4,3696.3,3.1723]
[1732956210912,0.25216303,3696.4,3696.3,3.1723]
[1732956211272,0.25216303,3696.4,3696.3,3.7546]
[1732956211888,0.25227374,3696.4,3696.3,3.7546]
[1732956212289,0.40370756,3696.8,3696.7,2.70511]
[1732956212494,0.65599631,3696.8,3696.7,3.25511]
[1732956212701,0.25228875,3696.8,3696.7,3.25511]
[1732956213285,0.25228875,3696.8,3696.7,3.83741]
[1732956213511,0.1691587,3697.4,3697.3,3.25467]
[1732956213697,2.6114846,3697.7,3697.6,0.55]
[1732956213900,3.26767924,3697.7,3697.6,0.55]
[1732956214300,4.34996124,3697.7,3697.6,3.25445]
[1732956215807,3.94614915,3697.7,3697.6,3.25445]
[1732956216588,0.25238255,3697.7,3697.6,3.25445]
[1732956216800,2.05657269,3698.0,3697.9,3.25423]
[1732956217001,2.05657269,3698.0,3697.9,3.83653]
[1732956217002,2.30858104,3698.0,3697.9,3.83653]
[1732956217206,2.05657269,3698.0,3697.9,3.83653]
[1732956218031,2.60222705,3698.0,3697.9,3.83653]
[1732956218403,2.05657269,3698.0,3697.9,3.83653]
[1732956219234,1.082145,3698.2,3697.9,3.83653]
[1732956219407,10.78337566,3699.0,3698.6,0.55]
[1732956219593,2.05657269,3698.5,3698.4,3.25387]
[1732956220827,2.05657269,3698.5,3698.3,3.25393]
[1732956221229,2.05657269,3698.5,3698.4,3.25387]
[1732956221537,2.05657269,3698.5,3698.2,2.70397]
[1732956221831,2.42516697,3698.5,3698.3,0.4943]
[1732956222005,0.03380009,3698.4,3698.1,0.55]
[1732956222188,0.03380009,3698.4,3698.1,3.25407]
[1732956222395,1.55570009,3698.4,3698.1,0.55]
[1732956222589,1.55570017,3698.4,3698.2,2.70401]
[1732956222891,1.55570017,3698.4,3698.2,2.49941]
[1732956223109,1.5219,3698.4,3698.2,2.49941]
[1732956224545,1.5219,3698.4,3698.2,2.48881]
[1732956224752,1.5219,3698.4,3698.2,2.44131]
[1732956224935,1.5219,3698.4,3697.9,2.70423]
[1732956225557,1.5219,3698.4,3698.0,0.55]
[1732956226131,1.5219,3698.4,3698.0,0.4834]
[1732956226440,1.5219,3698.4,3698.0,2.70416]
[1732956226640,1.5219,3698.4,3698.1,2.70404]
[1732956226855,2.05754089,3698.4,3698.1,2.70404]
[1732956227556,0.53564089,3698.4,3698.1,2.70404]
[1732956227793,2.05657269,3698.5,3698.4,2.70387]
[1732956228110,2.05657269,3698.5,3698.4,3.28617]
[1732956228419,10.062018,3698.6,3698.4,2.70387]
[1732956228664,10.062018,3698.6,3698.5,2.70379]
[1732956229321,1.082018,3698.6,3698.5,2.70379]
[1732956232838,1.082018,3698.6,3698.3,2.70393]
[1732956233160,3.61757269,3698.5,3698.1,2.66176]
[1732956233675,3.61757269,3698.5,3698.0,2.70414]
[1732956234772,3.61757269,3698.5,3698.2,2.70399]
[1732956235366,3.61757269,3698.5,3698.2,2.63889]
[1732956235676,3.61757269,3698.5,3698.2,2.59139]
[1732956236862,1.42269428,3698.4,3698.2,2.59139]
[1732956237071,1.42269428,3698.4,3698.0,2.70414]
[1732956237238,1.67400751,3698.4,3698.0,2.70414]
[1732956237885,1.67400751,3698.4,3697.5,0.5823]
[1732956238041,1.42269428,3698.4,3698.0,2.7041]
[1732956238381,1.5102285,3698.3,3698.0,2.7041]
[1732956238588,1.5102285,3698.3,3698.1,2.70408]
[1732956239267,1.76156505,3698.3,3698.1,2.70408]
[1732956239485,1.5102285,3698.3,3698.1,2.70408]
[1732956239786,1.5102285,3698.3,3697.5,3.28676]
[1732956239991,0.25159835,3698.4,3698.3,2.70394]
[1732956240150,2.05657269,3698.5,3698.4,2.70387]
[1732956240355,2.30832521,3698.5,3698.4,2.70387]
[1732956241011,0.92716257,3698.5,3698.4,2.70387]
[1732956241193,1.17911177,3698.5,3698.4,2.70387]
[1732956242054,0.2519492,3698.5,3698.4,2.70387]
[1732956242281,1.17916524,3698.5,3698.4,2.70387]
[1732956242698,0.92716257,3698.5,3698.4,2.70387]
[1732956242875,1.082018,3698.6,3698.4,2.70387]
[1732956243103,1.082018,3698.6,3698.5,2.70379]
[1732956246455,2.589718,3698.6,3698.5,2.70379]
[1732956246659,3.11118958,3698.6,3698.5,2.70379]
[1732956246901,3.36343818,3698.6,3698.3,2.70389]
[1732956247098,3.11118958,3698.6,3698.2,2.70401]
[1732956247297,0.2522629,3698.5,3698.2,2.70401]
[1732956247602,3.11118958,3698.6,3698.4,2.70387]
[1732956247774,3.11118958,3698.6,3697.7,0.5823]
[1732956247775,0.25226806,3698.5,3697.7,0.5823]
[1732956248103,2.30662021,3698.4,3698.1,2.70406]
[1732956248256,0.49301353,3698.3,3698.2,2.70401]
[1732956248906,0.49301353,3698.3,3698.0,2.70415]
[1732956249070,0.25227059,3698.2,3698.0,2.70415]
[1732956249277,0.49301353,3698.3,3698.0,2.70415]
[1732956249509,0.25227931,3698.2,3698.0,2.70415]
[1732956249666,0.49301353,3698.3,3698.0,2.70415]
[1732956249867,0.25228084,3698.2,3698.0,2.70415]
[1732956250165,0.49301353,3698.3,3698.0,2.70415]
[1732956250365,0.2522893,3698.2,3698.0,2.70415]
[1732956250597,0.49301353,3698.3,3698.0,2.70415]
[1732956250796,0.25230011,3698.2,3698.0,2.70415]
[1732956251000,2.45798831,3698.5,3698.1,2.70409]
[1732956251163,0.25232281,3698.4,3698.3,2.70394]
[1732956251362,0.25232281,3698.4,3698.3,2.65654]
[1732956251802,0.25232281,3698.4,3698.1,2.70409]
[1732956252008,3.25169411,3698.5,3698.1,2.70409]
[1732956252186,1.73444991,3698.4,3698.1,2.70409]
[1732956252517,0.2523087,3698.3,3698.1,2.70409]
[1732956252689,1.48214121,3698.4,3698.1,2.70409]
[1732956252887,0.25230493,3698.3,3698.2,2.70401]
[1732956253200,3.25169411,3698.5,3698.1,2.70409]
[1732956253375,1.73446263,3698.4,3698.1,2.70409]
[1732956253584,2.05435942,3698.5,3698.1,2.70409]
[1732956253882,0.25232593,3698.4,3698.1,2.70409]
[1732956254083,8.98,3698.2,3697.1,0.5823]
[1732956254286,1.64939952,3698.3,3697.1,0.5823]
[1732956254287,2.05435942,3697.6,3697.1,0.5823]
[1732956254500,2.05435942,3697.6,3697.3,2.70467]
[1732956254994,0.25222913,3697.5,3697.3,2.70467]
[1732956255194,10.5956,3697.9,3697.3,2.70462]
[1732956255396,0.52806279,3697.7,3697.3,2.70466]
[1732956255601,2.34026804,3697.6,3696.9,0.5823]
[1732956255808,0.25210154,3697.5,3696.9,0.5823]
[1732956256016,2.05435942,3697.6,3697.1,2.70481]
[1732956257511,2.05435942,3697.6,3696.8,0.51896081]
[1732956257702,2.05435942,3697.6,3697.4,2.63575]
[1732956258030,2.9938227,3698.4,3697.1,0.55]
[1732956258031,1.6156,3698.3,3697.1,0.55]
[1732956258185,1.6156,3698.3,3697.9,2.7042]
[1732956258186,0.25193876,3698.2,3697.9,2.7042]
[1732956258394,1.6156,3698.3,3697.9,2.7042]
[1732956258715,1.6156,3698.3,3697.8,2.70424]
[1732956259031,1.6156,3698.3,3697.2,2.70474]
[1732956259032,0.54289556,3698.0,3697.9,2.70423]
[1732956260001,0.54289556,3698.0,3697.1,0.55]
[1732956260002,2.05435942,3698.4,3698.3,2.70394]
[1732956260197,2.30632112,3698.4,3698.3,2.70394]
[1732956260429,2.30633411,3698.4,3698.3,2.66614]
[1732956260639,2.30633411,3698.4,3698.1,2.70403]
[1732956260853,2.30633411,3698.4,3698.0,2.70416]
[1732956260854,2.05435942,3698.4,3698.0,2.70416]
[1732956261139,2.05435942,3698.4,3698.1,2.70408]
[1732956261345,0.25197436,3698.3,3698.1,2.70408]
[1732956261486,0.25197436,3698.2,3698.1,2.70408]
[1732956261825,0.25197436,3698.2,3698.0,2.70415]
[1732956262039,2.05435942,3698.4,3698.0,2.70415]
[1732956262244,0.82423888,3698.3,3698.0,2.70415]
[1732956262544,0.25197588,3698.2,3698.0,2.70415]
[1732956262747,0.572263,3698.3,3697.5,0.4229]
[1732956262748,1.86757588,3698.1,3697.5,2.70447]